bitfinex-derivatives/quotes_ETHF0:USTF0_20250602
["timestamp","ask_amount","ask_price","bid_price","bid_amount"]
[1748826739059,18.017,2540.7,2540.5,3.2078]
[1748826739265,18.017,2540.7,2540.6,0.78685]
[1748826739468,18.017,2540.7,2540.6,1.44425]
[1748826739667,18.017,2540.7,2540.6,3.29555]
[1748826739964,1.25261168,2540.8,2540.7,0.78682]
[1748826740162,20.46161978,2540.8,2540.7,0.78682]
[1748826740764,0.78682,2540.7,2540.6,3.29554]
[1748826740962,0.78682,2540.7,2540.6,2.5087]
[1748826741264,0.78682,2540.7,2540.6,1.1574]
[1748826741663,0.78682,2540.7,2540.6,1.94425]
[1748826742767,0.78682,2540.7,2540.6,1.1574]
[1748826742967,1.41642,2540.7,2540.6,1.1574]
[1748826743169,1.41642,2540.7,2540.6,1.94425]
[1748826744865,18.6816,2540.7,2540.6,1.94425]
[1748826745167,19.46842,2540.7,2540.6,1.94425]
[1748826745772,19.46842,2540.7,2540.6,0.5]
[1748826746068,19.46842,2540.7,2540.6,1.28685]
[1748826746464,20.62300791,2540.7,2540.6,2.59705]
[1748826746865,19.20858791,2540.7,2540.6,2.59705]
[1748826747067,18.054,2540.7,2540.6,2.59705]
[1748826747371,19.99566401,2540.7,2540.6,2.59705]
[1748826747769,19.99566401,2540.7,2540.6,0.5]
[1748826747975,24.54836401,2540.7,2540.6,0.5]
[1748826748576,24.54834935,2540.7,2540.6,0.5]
[1748826749270,24.54834935,2540.7,2540.6,1.28685]
[1748826749576,21.34054935,2540.7,2540.6,1.28685]
[1748826749973,1.94164935,2540.7,2540.6,1.28685]
[1748826750168,0.00591168,2540.8,2540.7,0.78682]
[1748826750368,1.94728074,2540.8,2540.7,0.78682]
[1748826750671,1.16049074,2540.8,2540.5,1.3665]
[1748826750873,0.78685,2540.6,2540.5,2.15336]
[1748826751071,0.78685,2540.6,2540.5,2.65336]
[1748826751375,0.78685,2540.7,2540.6,0.78683]
[1748826751874,0.78685,2540.6,2540.5,2.65335]
[1748826752666,0.78685,2540.6,2540.5,0.5]
[1748826752868,1.94160715,2540.6,2540.5,0.5]
[1748826753078,4.56940715,2540.6,2540.5,0.5]
[1748826754577,22.68040715,2540.6,2540.5,0.5]
[1748826755072,22.68040715,2540.6,2540.5,1.1695]
[1748826755872,22.75110504,2540.6,2540.5,0.5]
[1748826756075,27.75110504,2540.6,2540.5,0.5]
[1748826756273,28.20652408,2540.6,2540.5,0.5]
[1748826756482,27.97881434,2540.6,2540.5,0.5]
[1748826756671,27.97882774,2540.6,2540.5,0.5]
[1748826757071,27.97867459,2540.6,2540.5,0.5]
[1748826757574,22.75095189,2540.6,2540.5,0.5]
[1748826757871,0.78691,2540.4,2540.3,0.00591168]
[1748826758070,1.941514,2540.4,2540.3,0.00591168]
[1748826758580,20.057514,2540.4,2540.3,0.00591168]
[1748826760579,20.057514,2540.4,2540.3,1.87671168]
[1748826760780,20.057514,2540.4,2540.3,0.50591168]
[1748826761583,20.06122645,2540.4,2540.3,0.50591168]
[1748826762081,20.06122645,2540.4,2540.3,1.75571168]
[1748826762483,20.06022645,2540.4,2540.3,2.54265168]
[1748826762674,20.06022645,2540.4,2540.3,1.75571168]
[1748826763079,20.06022645,2540.4,2540.3,0.50591168]
[1748826765782,20.06120119,2540.4,2540.3,0.50591168]
[1748826767183,20.28919328,2540.4,2540.3,0.50591168]
[1748826767379,20.06161166,2540.4,2540.3,0.50591168]
[1748826767784,20.28960173,2540.4,2540.3,0.50591168]
[1748826767987,20.28960238,2540.4,2540.3,0.50591168]
[1748826768184,20.28960235,2540.4,2540.3,0.50591168]
[1748826768385,20.28960238,2540.4,2540.3,0.50591168]
[1748826769188,20.28959434,2540.4,2540.3,0.50591168]
[1748826769782,23.26941166,2540.4,2540.3,0.50591168]
[1748826770083,27.38240119,2540.4,2540.3,0.50591168]
[1748826770388,27.38301264,2540.4,2540.3,0.50591168]
[1748826770790,28.73607732,2540.4,2540.3,0.50591168]
[1748826771085,24.696821,2540.4,2540.3,0.50591168]
[1748826771385,5.221721,2540.4,2540.3,1.29285168]
[1748826771585,23.57461032,2540.4,2540.3,0.50591168]
[1748826771979,5.221721,2540.4,2540.3,0.50591168]
[1748826772186,5.221721,2540.4,2540.3,2.67315168]
[1748826772187,23.347721,2540.4,2540.3,2.67315168]
[1748826772380,4.434811,2540.4,2540.3,2.67315168]
[1748826772588,1.227011,2540.4,2540.3,2.67315168]
[1748826772889,0.07069789,2540.4,2540.3,2.67315168]
[1748826774788,0.07069789,2540.4,2540.3,1.88621168]
[1748826774789,0.85760789,2540.4,2540.3,1.88621168]
[1748826775292,2.01371048,2540.4,2540.3,0.50591168]
[1748826776087,2.67381048,2540.4,2540.3,0.50591168]
[1748826776786,1.22680048,2540.4,2540.3,1.29285168]
[1748826777587,2.01371048,2540.4,2540.3,0.00591168]
[1748826777788,2.01371048,2540.4,2540.3,0.50591168]
[1748826778490,1.22680048,2540.4,2540.3,1.29285168]
[1748826778891,1.22708237,2540.4,2540.3,1.29285168]
[1748826779499,1.22708237,2540.4,2540.3,2.57395168]
[1748826779995,2.01399237,2540.4,2540.3,2.57395168]
[1748826780597,1.22708237,2540.4,2540.3,2.57395168]
[1748826781199,2.01399237,2540.4,2540.3,2.57395168]
[1748826781399,1.22708237,2540.4,2540.3,2.57395168]
[1748826781794,0.07069789,2540.4,2540.3,3.26195168]
[1748826781995,0.07069789,2540.4,2540.3,7.14695168]
[1748826789305,1.42820168,2540.8,2540.7,0.78682]
[1748826789504,1.16215443,2540.8,2540.7,0.78682]
[1748826789708,1.16215443,2540.8,2540.7,4.69782]
[1748826790005,1.16207763,2540.8,2540.7,4.69782]
[1748826790310,0.00591168,2540.8,2540.7,6.50342]
[1748826794609,0.00591168,2540.8,2540.7,9.71122]
[1748826796710,0.00591168,2540.8,2540.7,6.50342]
[1748826799011,0.79270168,2540.8,2540.7,5.19782]
[1748826799517,0.86339957,2540.8,2540.7,5.19782]
[1748826799712,0.86339957,2540.8,2540.7,4.411]
[1748826799913,0.86339957,2540.8,2540.7,5.19782]
[1748826800107,0.86339957,2540.8,2540.7,4.411]
[1748826800308,2.90019957,2540.8,2540.7,4.411]
[1748826800503,2.90019957,2540.8,2540.7,0.5]
[1748826800708,4.05554882,2540.8,2540.7,0.5]
[1748826802409,0.78691,2540.4,2540.3,0.00591168]
[1748826802806,1.94291034,2540.4,2540.3,0.00591168]
[1748826803011,3.98241034,2540.4,2540.3,0.00591168]
[1748826803413,3.982452,2540.4,2540.3,0.00591168]
[1748826804811,3.982452,2540.4,2540.3,0.79285168]
[1748826805010,3.982452,2540.4,2540.3,0.00591168]
[1748826805316,3.982452,2540.4,2540.3,0.50591168]
[1748826806818,22.091452,2540.4,2540.3,0.50591168]
[1748826807716,22.09104379,2540.4,2540.3,0.50591168]
[1748826812419,1.94254379,2540.4,2540.3,0.50591168]
[1748826812620,0.78689,2540.5,2540.4,0.78688]
[1748826812812,20.03813481,2540.5,2540.4,0.78688]
[1748826813010,1.15524481,2540.5,2540.4,0.78688]
[1748826813215,0.78687,2540.6,2540.4,5.159]
[1748826813414,0.78687,2540.6,2540.5,0.78686]
[1748826813614,0.78687,2540.6,2540.5,2.67966]
[1748826816624,0.78687,2540.6,2540.5,1.8928]
[1748826816825,0.78687,2540.6,2540.5,0.6448]
[1748826818427,0.78687,2540.6,2540.5,1.43168]
[1748826818822,0.78687,2540.6,2540.5,0.6448]
[1748826819325,2.14497,2540.6,2540.5,0.6448]
[1748826820332,0.78691,2540.4,2540.3,3.71371168]
[1748826820826,0.85760789,2540.4,2540.3,3.71371168]
[1748826821322,2.21570789,2540.4,2540.3,3.71371168]
[1748826821723,2.21570789,2540.4,2540.3,0.50591168]
[1748826822427,3.37118278,2540.4,2540.3,0.50591168]
[1748826822724,3.37118278,2540.4,2540.3,0.00591168]
[1748826823027,3.37118278,2540.4,2540.3,0.50591168]
[1748826825230,2.01308278,2540.4,2540.3,0.50591168]
[1748826825432,2.01345925,2540.4,2540.3,0.50591168]
[1748826827030,2.01345925,2540.4,2540.3,1.29285168]
[1748826827226,19.30054925,2540.4,2540.3,1.29285168]
[1748826827431,20.08745925,2540.4,2540.3,0.50591168]
[1748826827832,20.08745925,2540.4,2540.3,1.83711168]
[1748826828732,20.08745925,2540.4,2540.3,2.62405168]
[1748826828936,20.08745925,2540.4,2540.3,1.83711168]
[1748826829735,20.08856168,2540.4,2540.3,1.83711168]
[1748826831037,1.22765168,2540.4,2540.3,2.62405168]
[1748826831334,20.08056168,2540.4,2540.3,2.62405168]
[1748826832335,20.08056168,2540.4,2540.3,1.83711168]
[1748826832537,20.08056168,2540.4,2540.3,2.62405168]
[1748826832728,20.08056168,2540.4,2540.3,1.83711168]
[1748826832929,1.22765168,2540.4,2540.3,2.62405168]
[1748826833433,0.07069789,2540.4,2540.3,2.62405168]
[1748826833825,0.07069789,2540.4,2540.3,6.51305168]
[1748826837438,0.07069789,2540.4,2540.3,6.01305168]
[1748826837937,0.07069789,2540.4,2540.3,6.51305168]
[1748826844838,0.07069789,2540.4,2540.3,113.83305168]
[1748826847146,0.00591168,2540.8,2540.7,0.78681]
[1748826847345,0.00591168,2540.8,2540.7,7.86061]
[1748826849345,0.00591168,2540.8,2540.7,4.65281]
[1748826849539,0.00591168,2540.8,2540.7,7.86061]
[1748826852747,0.00591168,2540.8,2540.7,8.36061]
[1748826860352,0.72930957,2540.8,2540.7,8.36061]
[1748826861350,0.72930957,2540.8,2540.7,5.15281]
[1748826862553,3.2078,2541.4,2540.7,4.366]
[1748826862754,0.6563,2541.3,2541.2,0.78666]
[1748826863057,0.6563,2541.3,2541.2,3.99446]
[1748826863349,0.6563,2541.3,2541.1,3.866]
[1748826863556,1.3787,2541.2,2541.0,41.58669]
[1748826863758,1.3787,2541.2,2541.1,0.78669]
[1748826864257,21.2388,2541.7,2541.5,0.78656]
[1748826864258,3.2078,2541.7,2541.5,0.78656]
[1748826864457,21.97752973,2541.6,2541.1,3.28899]
[1748826864662,2.50368973,2541.5,2541.4,0.78659]
[1748826865459,2.50368973,2541.5,2541.3,0.7866]
[1748826865650,1.3481,2541.4,2541.3,0.7866]
[1748826866047,2.13469,2541.4,2541.3,0.7866]
[1748826866551,1.3481,2541.4,2541.3,0.7866]
[1748826867257,2.13469,2541.4,2541.3,0.7866]
[1748826867855,1.3481,2541.4,2541.3,1.2866]
[1748826869858,2.13469,2541.4,2541.3,0.5]
[1748826870750,2.13469,2541.4,2541.3,1.28662]
[1748826871657,2.13469,2541.4,2541.3,0.5]
[1748826871858,3.28978379,2541.4,2541.3,0.5]
[1748826872754,21.31878379,2541.4,2541.3,0.5]
[1748826872951,3.28978379,2541.4,2541.3,0.5]
[1748826873149,21.31878379,2541.4,2541.3,0.5]
[1748826874458,21.38948168,2541.4,2541.3,0.5]
[1748826875254,21.61740484,2541.4,2541.3,107.82]
[1748826875462,21.61740838,2541.4,2541.3,107.82]
[1748826875660,21.61741258,2541.4,2541.3,107.82]
[1748826875958,21.61850734,2541.4,2541.3,107.82]
[1748826876161,21.61855247,2541.4,2541.3,107.82]
[1748826876363,26.61855247,2541.4,2541.3,107.82]
[1748826876660,30.47155247,2541.4,2541.3,107.82]
[1748826876859,32.8181167,2541.4,2541.3,68.26524889]
[1748826877053,30.47155247,2541.4,2541.3,68.26524889]
[1748826877255,30.47156188,2541.4,2541.3,68.26524889]
[1748826877455,30.24357642,2541.4,2541.3,68.26524889]
[1748826877855,30.47156802,2541.4,2541.3,68.26524889]
[1748826878063,32.82758007,2541.4,2541.3,68.26524889]
[1748826878365,21.65656794,2541.4,2541.3,68.26524889]
[1748826878763,21.65650792,2541.4,2541.3,68.26524889]
[1748826878963,21.65651539,2541.4,2541.3,68.26524889]
[1748826879165,21.65651435,2541.4,2541.3,68.26524889]
[1748826879363,21.65651284,2541.4,2541.3,68.26524889]
[1748826879663,26.65651284,2541.4,2541.3,68.26524889]
[1748826879963,29.01252497,2541.4,2541.3,68.26524889]
[1748826880161,27.85633644,2541.4,2541.3,68.26524889]
[1748826880464,29.01253945,2541.4,2541.3,68.26524889]
[1748826880658,28.78459901,2541.4,2541.3,68.26524889]
[1748826880863,29.01251388,2541.4,2541.3,68.26524889]
[1748826881065,28.78459901,2541.4,2541.3,68.26524889]
[1748826881460,29.01250598,2541.4,2541.3,68.26524889]
[1748826881962,28.78459901,2541.4,2541.3,68.26524889]
[1748826882161,26.65648098,2541.4,2541.3,68.26524889]
[1748826882465,26.65648293,2541.4,2541.3,68.26524889]
[1748826882660,26.65648636,2541.4,2541.3,68.26524889]
[1748826883060,26.65648636,2541.4,2541.3,67.88904889]
[1748826883254,26.65646033,2541.4,2541.3,67.88904889]
[1748826883460,26.65645002,2541.4,2541.3,67.88904889]
[1748826883665,26.65642864,2541.4,2541.3,66.92922889]
[1748826883967,29.80418099,2541.4,2541.3,59.82058253]
[1748826884168,26.65645119,2541.4,2541.3,54.94919204]
[1748826884362,8.58945119,2541.4,2541.3,51.05934155]
[1748826884666,29.57899818,2541.4,2541.3,48.31399106]
[1748826884863,29.80679933,2541.4,2541.3,45.01634057]
[1748826885060,29.57899818,2541.4,2541.3,41.80128008]
[1748826885255,29.57899818,2541.4,2541.3,35.1285091]
[1748826885463,29.80678861,2541.4,2541.3,31.82941861]
[1748826885664,29.80678861,2541.4,2541.3,29.86196812]
[1748826885863,29.80678861,2541.4,2541.3,27.89451763]
[1748826886164,11.72878861,2541.4,2541.3,20.93760665]
[1748826886363,11.72871082,2541.4,2541.3,20.93760665]
[1748826886558,29.58599818,2541.4,2541.3,20.93760665]
[1748826886762,26.67423725,2541.4,2541.3,19.77576665]
[1748826887060,29.58599818,2541.4,2541.3,12.00978567]
[1748826887259,29.8136531,2541.4,2541.3,8.88446518]
[1748826887565,29.81365114,2541.4,2541.3,7.92205518]
[1748826888457,29.81365114,2541.4,2541.3,7.07051518]
[1748826888657,29.58599818,2541.4,2541.3,6.27591518]
[1748826888863,29.81354826,2541.4,2541.3,6.27591518]
[1748826889060,11.7267074,2541.4,2541.3,6.27591518]
[1748826889263,26.6902961,2541.4,2541.3,6.27591518]
[1748826890162,26.46274544,2541.4,2541.3,5.45230518]
[1748826890366,26.46274544,2541.4,2541.3,3.17871518]
[1748826890567,26.46274544,2541.4,2541.3,2.11097518]
[1748826890568,26.69025679,2541.4,2541.3,2.11097518]
[1748826890763,26.69025679,2541.4,2541.3,0.99573518]
[1748826890968,26.69023554,2541.4,2541.3,5.18e-06]
[1748826891671,26.69022239,2541.4,2541.3,5.18e-06]
[1748826892071,26.69020514,2541.4,2541.3,5.18e-06]
[1748826892272,26.69020505,2541.4,2541.3,5.18e-06]
[1748826892772,29.89799106,2541.4,2541.3,5.18e-06]
[1748826893273,33.75999617,2541.4,2541.3,5.18e-06]
[1748826893467,33.75928908,2541.4,2541.3,5.18e-06]
[1748826893768,33.75928947,2541.4,2541.3,5.18e-06]
[1748826893973,33.75929334,2541.4,2541.3,5.18e-06]
[1748826894173,33.75929504,2541.4,2541.3,5.18e-06]
[1748826894471,33.75929507,2541.4,2541.3,5.18e-06]
[1748826894672,33.75939712,2541.4,2541.3,5.18e-06]
[1748826894872,33.95609712,2541.4,2541.3,5.18e-06]
[1748826895073,33.95610136,2541.4,2541.3,5.18e-06]
[1748826895273,33.95609911,2541.4,2541.3,5.18e-06]
[1748826895466,33.95611841,2541.4,2541.3,5.18e-06]
[1748826895670,33.95611829,2541.4,2541.3,5.18e-06]
[1748826895973,33.72863951,2541.4,2541.3,5.18e-06]
[1748826896174,33.95610879,2541.4,2541.3,5.18e-06]
[1748826896875,0.78678,2540.8,2540.7,0.6717]
[1748826897078,23.4838009,2540.8,2540.7,0.6717]
[1748826897577,23.48384471,2540.8,2540.7,0.6717]
[1748826897780,22.33009309,2540.8,2540.7,0.6717]
[1748826897978,23.48420921,2540.8,2540.7,0.6717]
[1748826898475,23.25669612,2540.8,2540.7,0.6717]
[1748826898680,23.48426345,2540.8,2540.7,0.6717]
[1748826898978,23.25669612,2540.8,2540.7,0.6717]
[1748826899380,23.48425859,2540.8,2540.7,0.6717]
[1748826899678,24.86375859,2540.8,2540.7,0.6717]
[1748826899875,3.937,2540.4,2539.1,3.92882262]
[1748826900071,0.78734,2539.0,2538.9,3.92882262]
[1748826900271,18.51976331,2539.0,2538.4,3.92882262]
[1748826900479,1.17157682,2539.0,2538.2,8.69065384]
[1748826900674,1.17157682,2538.9,2538.4,0.5]
[1748826900981,0.00591168,2538.9,2538.8,0.7874]
[1748826903181,0.00591168,2538.9,2538.8,2.1354]
[1748826903883,0.00591168,2538.9,2538.8,1.348]
[1748826904181,0.00591168,2538.9,2538.8,2.1354]
[1748826905183,0.00591168,2538.9,2538.8,6.6505]
[1748826906078,0.07660957,2538.9,2538.8,6.6505]
[1748826906881,0.07660957,2538.9,2538.8,5.8631]
[1748826907081,0.07660957,2538.9,2538.8,6.6505]
[1748826908682,0.86397957,2538.9,2538.8,2.0081]
[1748826909184,4.07177957,2538.9,2538.8,2.0081]
[1748826909987,4.26867957,2538.9,2538.8,2.0081]
[1748826910789,4.26867957,2538.9,2538.8,1.348]
[1748826913790,0.78743,2538.7,2538.6,0.6851]
[1748826914888,19.04143,2538.7,2538.6,0.6851]
[1748826916191,0.78749,2538.5,2538.4,0.00591168]
[1748826916584,3.99529,2538.5,2538.4,0.00591168]
[1748826917692,7.99029,2538.5,2538.4,0.00591168]
[1748826917891,9.15590923,2538.5,2538.4,0.00591168]
[1748826918391,7.99029,2538.5,2538.4,0.00591168]
[1748826918591,22.24429,2538.5,2538.4,0.00591168]
[1748826918993,3.99529,2538.5,2538.4,0.00591168]
[1748826919187,22.24329,2538.5,2538.4,0.00591168]
[1748826919986,3.2078,2538.8,2538.4,0.00591168]
[1748826920290,3.2078,2538.8,2538.6,0.78746]
[1748826920291,0.07069789,2538.7,2538.6,0.78746]
[1748826920792,0.07069789,2538.7,2538.6,6.28746]
[1748826921188,0.07069789,2538.7,2538.6,9.49526]
[1748826922794,0.99019168,2538.9,2538.6,9.49526]
[1748826922795,0.20281168,2538.9,2538.8,0.7874]
[1748826922991,0.99019168,2538.9,2538.7,0.78742]
[1748826923194,0.07069789,2538.7,2538.6,4.49523]
[1748826923694,0.07069789,2538.7,2538.6,9.49523]
[1748826924288,0.07069789,2538.7,2538.6,4.49523]
[1748826924491,0.07069789,2538.7,2538.6,9.49523]
[1748826925391,0.07069789,2538.7,2538.6,4.49523]
[1748826925591,0.26759789,2538.7,2538.6,4.49523]
[1748826929900,0.26759789,2538.7,2538.6,45.29523]
[1748826933294,0.26759789,2538.7,2538.6,44.79523]
[1748826933599,0.26759789,2538.7,2538.6,45.29523]
[1748826936398,0.26759789,2538.7,2538.6,45.97793]
[1748826938002,0.26759789,2538.7,2538.6,47.24743]
[1748826938706,0.26759789,2538.7,2538.6,44.03963]
[1748826938903,0.26759789,2538.7,2538.6,47.24743]
[1748826944507,0.26759789,2538.7,2538.6,6.44743]
[1748826944709,0.26759789,2538.7,2538.6,5.17793]
[1748826945210,0.26759789,2538.7,2538.6,4.67793]
[1748826945600,0.26759789,2538.7,2538.6,6.47823]
[1748826948010,0.26759789,2538.7,2538.6,47.27823]
[1748826948613,0.26759789,2538.7,2538.6,45.29523]
[1748826948813,0.26759789,2538.7,2538.6,4.49523]
[1748826949315,0.26759789,2538.7,2538.6,45.29523]
[1748826949509,1.60029789,2538.7,2538.6,45.29523]
[1748826951216,1.60029789,2538.7,2538.6,42.08743]
[1748826952919,1.60029789,2538.7,2538.6,1.28743]
[1748826957423,1.60029789,2538.7,2538.6,0.78743]
[1748826957721,1.60029789,2538.7,2538.6,1.28743]
[1748826958622,0.26759789,2538.7,2538.6,1.28743]
[1748826960923,2.23181463,2538.7,2538.6,0.5]
[1748826961117,2.46000238,2538.7,2538.6,0.5]
[1748826961319,7.23184915,2538.7,2538.6,0.5]
[1748826961518,7.46002155,2538.7,2538.6,0.5]
[1748826961926,0.78749,2538.5,2538.4,0.00591168]
[1748826962120,23.35411126,2538.5,2538.4,0.00591168]
[1748826962326,23.58210362,2538.5,2538.4,0.00591168]
[1748826962619,23.03354781,2538.5,2538.4,0.00591168]
[1748826962825,23.03355103,2538.5,2538.4,0.00591168]
[1748826963029,30.56107229,2538.5,2538.4,0.00591168]
[1748826963330,30.56091481,2538.5,2538.4,0.00591168]
[1748826963720,30.33311126,2538.5,2538.4,0.00591168]
[1748826963918,30.56078301,2538.5,2538.4,0.00591168]
[1748826964126,30.33311126,2538.5,2538.4,0.00591168]
[1748826964321,31.50831792,2538.5,2538.4,0.00591168]
[1748826964624,31.73598001,2538.5,2538.4,0.00591168]
[1748826964825,0.78774,2537.8,2537.4,3.95]
[1748826965127,0.7878,2537.5,2537.4,3.95]
[1748826965328,0.7878,2537.5,2537.4,0.5]
[1748826965719,5.7878,2537.5,2537.4,0.5]
[1748826966024,1.3449,2537.5,2537.4,1.28783]
[1748826966428,1.17376042,2537.6,2537.5,0.7878]
[1748826967431,1.3449,2537.6,2537.5,0.7878]
[1748826967729,2.13267,2537.6,2537.4,1.28783]
[1748826967931,0.6601,2537.5,2537.4,1.28783]
[1748826968132,1.9251,2537.5,2537.4,1.28783]
[1748826970625,3.2078,2538.2,2538.0,0.78763]
[1748826970821,3.99541,2538.2,2538.0,0.78763]
[1748826971126,1.2843,2538.1,2538.0,0.78765]
[1748826971329,18.193,2538.2,2538.1,0.78762]
[1748826971532,1.2843,2538.3,2538.2,0.78759]
[1748826971932,19.5544,2538.4,2538.3,0.78755]
[1748826972326,1.3584,2538.4,2538.3,0.78755]
[1748826972721,2.14592,2538.4,2538.2,0.78757]
[1748826973027,1.2843,2538.3,2538.2,0.78757]
[1748826973227,2.07187,2538.3,2538.1,0.7876]
[1748826973431,0.78759,2538.2,2538.0,0.78763]
[1748826973633,2.07192,2538.1,2537.9,0.78766]
[1748826974333,2.07194,2538.1,2537.9,0.78766]
[1748826974629,0.6693,2538.0,2537.9,0.78766]
[1748826974831,1.965,2538.0,2537.9,0.78766]
[1748826975430,1.965,2538.0,2537.9,0.78768]
[1748826975629,1.965,2538.0,2537.9,1.28768]
[1748826976533,3.891,2538.4,2538.3,0.78755]
[1748826976834,3.2078,2538.4,2538.3,0.78755]
[1748826977227,4.4775,2538.4,2538.3,0.78755]
[1748826977928,5.26502,2538.4,2538.1,5.271]
[1748826978130,1.2697,2538.4,2538.3,0.78755]
[1748826978637,2.05722,2538.4,2538.1,5.271]
[1748826978935,2.05722,2538.4,2538.3,0.78755]
[1748826979131,1.2697,2538.4,2538.3,0.78755]
[1748826982238,2.05722,2538.4,2538.3,0.78755]
[1748826983331,0.78758,2538.2,2538.1,7.9384]
[1748826984136,0.6587,2538.2,2538.1,7.9384]
[1748826984331,0.1969,2538.5,2538.1,7.1508]
[1748826984539,1.64311,2538.5,2538.4,0.78752]
[1748826985040,2.89039,2538.5,2538.4,0.78752]
[1748826985239,0.1969,2538.5,2538.4,0.78752]
[1748826987830,0.1969,2538.5,2538.4,1.28752]
[1748826988743,0.00591168,2538.9,2538.7,0.78743]
[1748826988936,1.2613,2538.8,2538.7,0.78743]
[1748826989444,2.43486873,2538.8,2538.7,0.78743]
[1748826989643,1.2613,2538.8,2538.7,0.78743]
[1748826989838,0.78743,2538.7,2538.6,4.73044]
[1748826990236,1.29,2538.7,2538.6,4.73044]
[1748826990437,2.07743,2538.7,2538.6,4.73044]
[1748826990746,1.29,2538.7,2538.6,4.73044]
[1748826991843,0.7874,2538.8,2538.7,0.78743]
[1748826992243,2.1226,2538.8,2538.7,0.78743]
[1748826992644,0.78743,2538.7,2538.6,4.73044]
[1748826992846,0.78743,2538.7,2538.6,3.943]
[1748826993046,0.78743,2538.7,2538.6,4.73046]
[1748826993347,2.12263,2538.7,2538.6,4.73046]
[1748826993644,2.12263,2538.7,2538.6,3.943]
[1748826994046,2.12263,2538.7,2538.6,4.73046]
[1748826995147,0.78766,2538.0,2537.4,3.2078]
[1748826995351,1.9945,2537.9,2537.8,0.78771]
[1748826995645,3.878,2538.4,2537.8,1.96927]
[1748826995851,5.8725,2538.4,2538.3,0.78755]
[1748826996350,7.04636263,2538.4,2538.3,0.78755]
[1748826996849,3.16836263,2538.4,2538.3,0.78755]
[1748826997050,1.17386263,2538.4,2538.3,0.78755]
[1748826997244,4.70244789,2538.7,2538.3,0.5]
[1748826997548,1.96152779,2538.6,2538.4,2.0514]
[1748826997743,0.78746,2538.6,2538.4,1.45842]
[1748826997949,2.09669,2538.5,2538.4,1.45842]
[1748826998245,2.09669,2538.5,2538.4,0.6709]
[1748826998447,3.27078758,2538.5,2538.4,0.6709]
[1748826998646,3.27078758,2538.5,2538.3,5.26352]
[1748826998854,2.047,2538.4,2538.3,5.26352]
[1748827000354,3.22248066,2538.4,2538.3,5.26352]
[1748827000556,7.21780066,2538.4,2538.3,0.5]
[1748827001558,7.21780066,2538.4,2538.3,1.28755]
[1748827002645,7.21792798,2538.4,2538.3,1.28755]
[1748827004757,6.43040798,2538.4,2538.3,1.28755]
[1748827004954,1e-08,2538.4,2538.3,1.28755]
[1748827005160,3.27849789,2538.7,2538.6,0.78746]
[1748827005361,3.27849789,2538.7,2538.6,4.76346]
[1748827005554,0.07069789,2538.7,2538.6,4.76346]
[1748827007462,0.07069789,2538.7,2538.6,6.01856]
[1748827012258,0.07069789,2538.7,2538.6,46.81856]
[1748827017168,0.07069789,2538.7,2538.6,47.31856]
[1748827021075,3.2078,2539.8,2538.6,51.5311]
[1748827021275,1.46155,2539.6,2539.5,0.78718]
[1748827021781,2.78255,2539.6,2539.5,0.78718]
[1748827022177,3.21371168,2539.8,2539.4,3.975]
[1748827022178,3.21371168,2539.8,2539.7,0.78712]
[1748827022374,4.38067912,2539.8,2539.7,0.78712]
[1748827022676,3.21371168,2539.8,2539.7,0.78712]
[1748827023073,4.50971168,2539.8,2539.7,0.78712]
[1748827023475,5.29680168,2539.8,2539.7,0.78712]
[1748827023670,5.29680168,2539.8,2539.4,3.975]
[1748827023671,4.50971168,2539.8,2539.6,0.78713]
[1748827023875,1.9868,2539.7,2539.6,0.78713]
[1748827024082,3.21371168,2539.8,2539.7,0.78712]
[1748827025276,0.78713,2539.7,2539.6,0.78714]
[1748827025481,5.20051168,2539.8,2539.4,3.975]
[1748827025681,1.272,2539.6,2539.5,3.974]
[1748827025880,2.05915,2539.6,2539.5,3.974]
[1748827026077,0.78721,2539.4,2539.3,0.00591168]
[1748827026278,3.99501,2539.4,2539.3,0.00591168]
[1748827026482,3.99501,2539.4,2539.3,0.79315168]
[1748827026684,4.66771,2539.4,2539.3,0.79315168]
[1748827028285,3.8805,2539.4,2539.3,0.79315168]
[1748827028888,2.0291,2539.4,2539.3,0.79315168]
[1748827029789,2.0291,2539.4,2539.3,4.73215168]
[1748827030487,0.6727,2539.4,2539.3,4.73215168]
[1748827032788,0.6727,2539.4,2539.3,5.23215168]
[1748827033493,1.45991,2539.4,2539.3,5.23215168]
[1748827034893,0.6727,2539.4,2539.3,5.23215168]
[1748827035290,2.83751,2539.4,2539.3,5.23215168]
[1748827036395,2.83751,2539.4,2539.3,0.50591168]
[1748827036689,12.21300858,2539.4,2539.3,0.50591168]
[1748827037395,7.21300858,2539.4,2539.3,0.50591168]
[1748827037695,12.4400609,2539.4,2539.3,0.50591168]
[1748827038399,7.4400609,2539.4,2539.3,0.50591168]
[1748827038691,7.21300858,2539.4,2539.3,0.50591168]
[1748827038896,7.44008243,2539.4,2539.3,0.50591168]
[1748827039090,7.21300858,2539.4,2539.3,0.50591168]
[1748827039289,7.44008221,2539.4,2539.3,0.50591168]
[1748827039590,7.44010905,2539.4,2539.3,0.50591168]
[1748827039785,7.44025839,2539.4,2539.3,0.50591168]
[1748827039990,7.51095628,2539.4,2539.3,0.50591168]
[1748827040188,7.28385589,2539.4,2539.3,0.50591168]
[1748827040391,7.51098333,2539.4,2539.3,0.50591168]
[1748827040593,7.51098182,2539.4,2539.3,0.50591168]
[1748827040990,7.51098619,2539.4,2539.3,0.50591168]
[1748827041195,7.51098661,2539.4,2539.3,0.50591168]
[1748827041598,7.28385589,2539.4,2539.3,0.50591168]
[1748827041799,7.51101732,2539.4,2539.3,0.50591168]
[1748827041999,7.51101774,2539.4,2539.3,0.50591168]
[1748827042198,7.51131143,2539.4,2539.3,0.50591168]
[1748827042497,7.5113124,2539.4,2539.3,0.50591168]
[1748827042700,7.51131181,2539.4,2539.3,0.50591168]
[1748827043090,7.28415283,2539.4,2539.3,0.50591168]
[1748827043292,7.51131017,2539.4,2539.3,0.50591168]
[1748827043495,7.51130861,2539.4,2539.3,0.50591168]
[1748827043704,7.51131025,2539.4,2539.3,0.50591168]
[1748827043992,12.5113104,2539.4,2539.3,0.50591168]
[1748827044197,0.78746,2538.6,2538.5,3.939]
[1748827044396,1.16828937,2538.6,2538.5,3.939]